fUSD/lending_fUSD_20250220
["ID","MTS","AMOUNT","RATE_DAILY","PERIOD"]
[353834969,1740084641729,-82967.18117904,0.00012408,2]
[353834971,1740084641739,-428.62538284,0.00012408,2]
[353834973,1740084641748,-40388.90711142,0.00012408,2]
[353834975,1740084641757,-58203.73344538,0.00012409,2]
[353834977,1740084641767,-388.64231361,0.00012409,2]
[353834979,1740084641776,-17117.00041981,0.00012409,2]
[353834981,1740084641786,-1876.51,0.00012436,2]
[353834983,1740084641797,-703.08,0.00012438,2]
[353834985,1740084641807,-300.0,0.00012438,2]
[353834987,1740084641818,-306.79177955,0.00012452,2]
[353834989,1740084641828,-1500.0,0.00012472,2]
[353834991,1740084641838,-1266.60292637,0.0001249,2]
[353834994,1740084641848,-150.0,0.00012499,2]
[353834995,1740084641857,-300.0,0.00012499,2]
[353834998,1740084641868,-666.0,0.00012499,2]
[353835000,1740084641877,-826699.62696849,0.000125,5]
[353835003,1740084641897,-29320.42,0.000125,5]
[353835005,1740084641909,-477.141665,0.000125,5]
[353835007,1740084641921,-2929.06688759,0.000125,5]
[353835009,1740084641932,-8711.71167505,0.000125,5]
[353835174,1740084643740,-500.0,0.00010958,2]
[353835176,1740084643750,-7029.9995,0.00011099,2]
[353835177,1740084643761,-235.97597461,0.00011099,2]
[353835179,1740084643770,-150.0,0.0001149,2]
[353835181,1740084643780,-241.001,0.0001149,2]
[353835183,1740084643790,-151.0,0.000124,2]
[353835185,1740084643799,-1300.61257656,0.000125,5]
[353835190,1740084643849,-732.542,0.000125,5]
[353835192,1740084643861,-162380.96313609,0.000125,5]
[353835197,1740084643908,-500.0,0.000125,5]
[353835199,1740084643920,-115630.73481333,0.000125,5]
[353835201,1740084643931,-8415.16613381,0.000125,5]
[353835205,1740084643966,-1585.000015,0.000125,5]
[353835207,1740084643977,-1286.56852234,0.000125,5]
[353835447,1740084646236,-1124.0,0.000125,2]
[353835449,1740084646246,-3604.36325,0.000125,5]
[353835471,1740084646455,-2877.12511633,0.00011289,2]
[353835473,1740084646467,-376.01291854,0.00011289,2]
[353835476,1740084646480,-616.38923221,0.00011289,2]
[353835480,1740084646514,-1415.4957693,0.00011289,2]
[353835900,1740085152333,652.33,9.485e-05,2]
[353835901,1740085321159,164.41,8.767e-05,2]
[353835903,1740085369647,309.01,0.00013918,30]
[353835908,1740085832733,-550.0,0.0001,2]
[353835910,1740085832743,-500.0,0.00010174,2]
[353835912,1740085832752,-500.0,0.00010174,2]
[353835914,1740085832762,-500.0,0.00010174,2]
[353835916,1740085832771,-500.0,0.00010958,2]
[353835918,1740085832779,-500.0,0.00010958,2]
[353835919,1740085832788,-7889.87938292,0.00011284,2]
[353835921,1740085832798,-475.16,0.00011314,2]
[353835923,1740085832807,-1000.0,0.0001136,2]
[353835925,1740085832817,-182.66,0.0001141,2]
[353835927,1740085832827,-216.014,0.000115,2]
[353835929,1740085832836,-500.0,0.00011544,2]
[353835931,1740085832845,-500.0,0.00011544,2]
[353835933,1740085832859,-481.11,0.00011544,2]
[353835935,1740085832869,-640.39,0.00011544,2]
[353835937,1740085832878,-9999.99,0.00011544,2]
[353835939,1740085832887,-1359.62,0.00011544,2]
[353835941,1740085832898,-697.48,0.00011544,2]
[353835943,1740085832908,-999.99,0.00011544,2]
[353835945,1740085832918,-9999.99,0.00011544,2]
[353835947,1740085832928,-150.99,0.00011749,2]
[353835949,1740085832938,-852.98,0.00011749,2]
[353835951,1740085832947,-150.99,0.00011749,2]
[353835953,1740085832959,-6131.76,0.00011749,2]
[353835955,1740085832968,-652.33,0.00011749,2]
[353835957,1740085832979,-610.94732306,0.00011987,2]
[353835958,1740085832988,-600.0,0.00012,2]
[353835960,1740085832998,-1000.0,0.00012054,2]
[353835962,1740085833008,-396.96,0.00012055,2]
[353835964,1740085833018,-152.0,0.0001206,3]
[353835966,1740085833029,-10000.0,0.00012124,2]
[353835968,1740085833039,-483.2144485,0.0001225,2]
[353835970,1740085833049,-2056.425,0.00012299,2]
[353835972,1740085833059,-156.3371668,0.00012299,2]
[353835974,1740085833068,-1000.0,0.000123,2]
[353835976,1740085833078,-2500.0,0.000123,2]
[353835978,1740085833088,-3104.48543373,0.000123,2]
[353835980,1740085833098,-1000.0,0.00012328,2]
[353835982,1740085833108,-268.73515101,0.00012329,2]
[353835984,1740085833118,-268.73515101,0.00012337,2]
[353835986,1740085833128,-268.73515101,0.0001236,2]
[353835988,1740085833138,-268.73515101,0.00012386,2]
[353835990,1740085833149,-500.0,0.00012393,2]
[353835992,1740085833158,-202.9281,0.000124,2]
[353835994,1740085833168,-16216.6765,0.000124,2]
[353835996,1740085833179,-500.0,0.000124,2]
[353835998,1740085833189,-47296.5332,0.000124,2]
[353836000,1740085833199,-1000.0,0.000124,2]
[353836002,1740085833210,-298.801,0.000124,2]
[353836004,1740085833220,-23380.7394,0.000124,2]
[353836006,1740085833229,-2911.7662,0.000124,2]
[353836008,1740085833239,-388.1521414,0.000124,2]
[353836010,1740085833249,-5000.0,0.000124,2]
[353836012,1740085833258,-55555.0,0.000124,2]
[353836014,1740085833268,-323.20347792,0.000124,2]
[353836016,1740085833277,-15279.61631681,0.000124,2]
[353836018,1740085833290,-1928.8,0.000124,2]
[353836021,1740085833306,-11164.97929165,0.000124,2]
[353836111,1740085838267,-917.5844,0.000123,2]
[353836112,1740085838277,-12498.35449998,0.000124,2]
[353836113,1740085838323,-13956.61172699,0.000124,2]
[353836114,1740085838332,-161.0976656,0.000124,2]
[353836115,1740085838341,-3104.48543366,0.00012467,2]
[353836116,1740085838351,-500.0,0.00012473,2]
[353836117,1740085838360,-500.0,0.00012499,2]
[353836118,1740085838369,-422.48337909,0.00012499,2]
[353836119,1740085838378,-500.0,0.00012499,2]
[353836120,1740085838387,-510.71007519,0.00012499,2]
[353836121,1740085838396,-500.0,0.00012499,2]
[353836122,1740085838405,-500.0,0.00012499,2]
[353836123,1740085838414,-500.0,0.00012499,2]
[353836124,1740085838424,-218.90483761,0.00012499,2]
[353836125,1740085838434,-500.0,0.00012499,2]
[353836126,1740085838443,-500.0,0.00012499,2]
[353836127,1740085838453,-500.0,0.00012499,2]
[353836128,1740085838463,-500.0,0.00012499,2]
[353836129,1740085838474,-500.0,0.00012499,2]
[353836130,1740085838483,-500.0,0.00012499,2]
[353836131,1740085838493,-500.0,0.00012499,2]
[353836132,1740085838502,-500.0,0.00012499,2]
[353836133,1740085838511,-500.0,0.00012499,2]
[353836134,1740085838521,-500.0,0.00012499,2]
[353836135,1740085838530,-500.0,0.00012499,2]
[353836136,1740085838540,-500.0,0.00012499,2]
[353836137,1740085838549,-500.0,0.00012499,2]
[353836138,1740085838559,-500.0,0.00012499,2]
[353836139,1740085838568,-500.0,0.00012499,2]
[353836140,1740085838577,-500.0,0.00012499,2]
[353836141,1740085838586,-500.0,0.00012499,2]
[353836142,1740085838595,-500.0,0.00012499,2]
[353836143,1740085838605,-500.0,0.00012499,2]
[353836144,1740085838614,-500.0,0.00012499,2]
[353836145,1740085838623,-500.0,0.00012499,2]
[353836146,1740085838632,-500.0,0.00012499,2]
[353836147,1740085838641,-500.0,0.00012499,2]
[353836148,1740085838650,-500.0,0.00012499,2]
[353836150,1740085838659,-500.0,0.00012499,2]
[353836152,1740085838668,-500.0,0.00012499,2]
[353836154,1740085838677,-500.0,0.00012499,2]
[353836156,1740085838686,-500.0,0.00012499,2]
[353836158,1740085838695,-500.0,0.00012499,2]
[353836160,1740085838704,-500.0,0.00012499,2]
[353836162,1740085838715,-500.0,0.00012499,2]
[353836164,1740085838724,-500.0,0.00012499,2]
[353836166,1740085838733,-500.0,0.00012499,2]
[353836168,1740085838742,-500.0,0.00012499,2]
[353836170,1740085838751,-668.57353053,0.00012499,2]
[353836172,1740085838760,-1007.0,0.000125,2]
[353836174,1740085838769,-123432.41886303,0.000125,5]
[353836176,1740085838780,-1718.61817897,0.000125,5]
[353836181,1740085838817,-1925.45,0.000125,5]
[353836183,1740085838828,-2152.0,0.000125,5]
[353836185,1740085838839,-3927.89069107,0.000125,5]
[353836341,1740085840435,-1366.66282459,0.000125,5]
[353836343,1740085840446,-2460.80851907,0.000125,5]
[353836349,1740085840492,-722.48634946,0.000125,5]
[353836351,1740085840503,-526.75623053,0.000125,5]
[353836353,1740085840515,-20120.87528414,0.000125,5]
[353836356,1740085840527,-4332.830364,0.000125,5]
[353836358,1740085840538,-6073.68070687,0.000125,5]
[353836360,1740085840550,-4757.3632563,0.000125,5]
[353836362,1740085840562,-95808.88691313,0.000125,5]
[353836365,1740085840577,-546.22216562,0.000125,5]
[353836367,1740085840588,-12899.53463118,0.000125,5]
[353836369,1740085840599,-376.42012793,0.000125,5]
[353836373,1740085840632,-299.25275844,0.000125,5]
[353836386,1740085840745,-303968.33894056,0.000125,5]
[353836388,1740085840757,-12066.15863939,0.000125,5]
[353836390,1740085840769,-304.11139967,0.000125,5]
[353836393,1740085840780,-2412.42666248,0.000125,5]
[353836395,1740085840792,-253.83039174,0.000125,5]
[353836397,1740085840803,-506.74800005,0.000125,5]
[353836399,1740085840815,-1391.65054933,0.000125,5]
[353836401,1740085840824,-776.87440087,0.000125,2]
[353836404,1740085840836,-223.12559913,0.000125,2]
[353836405,1740085840846,-1000.0,0.000125,3]
[353836408,1740085840856,-779.40381243,0.000125,4]
[353836410,1740085840870,-220.59618757,0.000125,4]
[353836412,1740085840879,-1000.0,0.000125,5]
[353836414,1740085840888,-203.9,0.000125,2]
[353836416,1740085840899,-203.9,0.000125,2]
[353836417,1740085840908,-203.9,0.000125,2]
[353836420,1740085840918,-8936.32533385,0.000125,2]
[353836422,1740085840930,-388.86363569,0.000125,2]
[353836424,1740085840944,-2254.030016,0.000125,2]
[353836426,1740085840955,-1573.250001,0.000125,2]
[353836670,1740085843415,-6414.789155,0.000125,2]
[353836677,1740085843474,-986.58,0.000125,2]
[353836679,1740085843485,-1935.895,0.000125,2]
[353836681,1740085843496,-226558.87075226,0.000125,2]
[353836967,1740085846303,-432.2399,0.000123,2]
[353836969,1740085846313,-195.12803554,0.00012499,2]
[353836971,1740085846322,-143813.5261062,0.000125,2]
[353836972,1740085846331,-203.9,0.000125,2]
[353836974,1740085846340,-205.0,0.000125,2]
[353836976,1740085846349,-205.0,0.000125,2]
[353836978,1740085846359,-205.0,0.000125,2]
[353836980,1740085846368,-205.0,0.000125,2]
[353836982,1740085846377,-205.0,0.000125,2]
[353836985,1740085846387,-205.0,0.000125,2]
[353836987,1740085846396,-205.0,0.000125,2]
[353836989,1740085846406,-205.0,0.000125,2]
[353836990,1740085846416,-205.0,0.000125,2]
[353836992,1740085846425,-205.0,0.000125,2]
[353836995,1740085846435,-206.0,0.000125,2]
[353836996,1740085846445,-206.0,0.000125,2]
[353836999,1740085846454,-206.0,0.000125,2]
[353837001,1740085846464,-206.0,0.000125,2]
[353837002,1740085846474,-206.0,0.000125,2]
[353837004,1740085846483,-206.0,0.000125,2]
[353837006,1740085846493,-206.0,0.000125,2]
[353837008,1740085846503,-206.0,0.000125,2]
[353837010,1740085846512,-206.0,0.000125,2]
[353837012,1740085846522,-206.0,0.000125,2]
[353837014,1740085846532,-324.0,0.000125,2]
[353837017,1740085846541,-324.0,0.000125,2]
[353837018,1740085846551,-324.0,0.000125,2]
[353837020,1740085846561,-324.0,0.000125,2]
[353837022,1740085846570,-324.0,0.000125,2]
[353837024,1740085846580,-324.0,0.000125,2]
[353837026,1740085846589,-324.0,0.000125,2]
[353837028,1740085846599,-324.0,0.000125,2]
[353837030,1740085846610,-324.0,0.000125,2]
[353837032,1740085846619,-324.0,0.000125,2]
[353837035,1740085846628,-86063.07661219,0.000125,2]
[353837037,1740085846640,-12946.90365006,0.000125,2]
[353837039,1740085846653,-7159.14221858,0.000125,2]
[353837043,1740085846684,-4345.12841488,0.000125,2]
[353837045,1740085846696,-508.52999999,0.000125,2]
[353837690,1740086384645,361.94,8.767e-05,2]
[353837691,1740086476044,293.55,0.00013918,30]
[353837692,1740086496475,963.15,0.0001,30]
[353837708,1740087031457,-268.59,9.756e-05,2]
[353837709,1740087031516,-318.5,9.756e-05,2]
[353837710,1740087031526,-445.17975064,9.828e-05,2]
[353837711,1740087031535,-500.0,9.973e-05,2]
[353837712,1740087031544,-16673.12087199,9.999e-05,2]
[353837713,1740087031554,-150.0,9.999e-05,2]
[353837714,1740087031563,-158.05370879,9.999e-05,2]
[353837715,1740087031572,-500.0,9.999e-05,2]
[353837716,1740087031582,-500.0,9.999e-05,2]
[353837717,1740087031591,-583.17695183,9.999e-05,2]
[353837718,1740087031600,-1045309.99086978,0.0001,2]
[353837719,1740087031611,-2735.4,0.0001,2]
[353837720,1740087031623,-6429.18923699,0.0001,2]
[353837721,1740087031634,-788342.0,0.0001,2]
[353837722,1740087031652,-85713.21425073,0.0001,2]
[353837723,1740087031664,-584.860001,0.0001,2]
[353837724,1740087031675,-32624.90685835,0.0001,2]
[353837725,1740087031686,-390890.97526363,0.0001,2]
[353837726,1740087031697,-1486.97959309,0.0001,2]
[353837727,1740087031708,-497.82,0.0001,2]
[353837728,1740087031720,-84742.27237333,0.0001,2]
[353837729,1740087031742,-24476.60130193,0.0001,2]
[353837730,1740087031753,-19852.96081902,0.0001,2]
[353837731,1740087031764,-4014.45255788,0.0001,2]
[353837732,1740087031786,-881.85133044,0.0001,2]
[353837733,1740087031797,-29827.17188899,0.0001,2]
[353837735,1740087031829,-2682.08096512,0.0001,2]
[353837737,1740087031840,-428.94,0.0001,2]
[353838284,1740087037598,-379.9751245,0.0001,2]
[353838292,1740087037656,-282.23840945,0.0001,2]
[353838306,1740087037769,-15951.09441448,0.0001,2]
[353838308,1740087037780,-683.85143187,0.0001,2]
[353838497,1740087039604,-3433.7363163,0.0001,2]
[353838512,1740087039717,-5264.36870073,0.0001,2]
[353838514,1740087039728,-475.05978909,0.0001,2]
[353838541,1740087039984,-396.69360933,0.0001,2]
[353838544,1740087039996,-431.51590947,0.0001,2]
[353838546,1740087040008,-1167.99001026,0.0001,2]
[353838548,1740087040021,-4099.84,0.0001,2]
[353838554,1740087040070,-476.34270654,0.0001,2]
[353838560,1740087040118,-14938.3201651,0.0001,2]
[353838846,1740087042718,-333.1,0.0001,2]
[353838870,1740087042940,-11029.88404999,0.0001,2]
[353839091,1740087045798,-4267.75630349,0.0001,2]
[353840224,1740087502510,151.05,8.767e-05,2]
[353840225,1740087545089,642.23,8.579e-05,2]
[353840226,1740087889387,150.0,9.509e-05,2]
[353840230,1740088020398,278.87,0.00013918,30]
[353840232,1740088137334,361.24479173,0.00014,30]
[353840240,1740088231788,-482.0,9.8e-05,2]
[353840241,1740088231799,-981.13199423,9.8e-05,2]
[353840242,1740088231849,-1165.82800577,9.8e-05,2]
[353840243,1740088231859,-173.55,9.8e-05,2]
[353840244,1740088231868,-150.0,9.838e-05,2]
[353840245,1740088231877,-150.0,9.838e-05,2]
[353840246,1740088231887,-150.0,9.838e-05,2]
[353840247,1740088231896,-150.21347789,9.838e-05,2]
[353840248,1740088231905,-150.0,9.838e-05,2]
[353840249,1740088231915,-150.0,9.922e-05,2]
[353840250,1740088231924,-150.0,9.973e-05,2]
[353840251,1740088231933,-500.0,9.973e-05,2]
[353840252,1740088231943,-1000.0,9.999e-05,2]
[353840253,1740088231951,-2009.11763189,9.999e-05,2]
[353840254,1740088231963,-1000.0,9.999e-05,2]
[353840255,1740088231973,-738.28295851,9.999e-05,2]
[353840256,1740088231984,-714.21207113,9.999e-05,2]
[353840257,1740088231995,-3851.42155941,9.999e-05,2]
[353840258,1740088232006,-1414.75,9.999e-05,2]
[353840259,1740088232017,-2748.16831835,9.999e-05,2]
[353840260,1740088232026,-150.0,9.999e-05,2]
[353840261,1740088232036,-500.0,9.999e-05,2]
[353840262,1740088232045,-511.09128184,9.999e-05,2]
[353840263,1740088232054,-15011.00839144,0.0001,2]
[353840264,1740088232063,-332.75257507,0.0001,2]
[353840265,1740088232074,-1679.65027651,0.0001,2]
[353840266,1740088232083,-94795.24172635,0.0001,2]
[353840267,1740088232095,-23156.15913158,0.0001,2]
[353840268,1740088232110,-393.04398086,0.0001,2]
[353840269,1740088232121,-10474.39854391,0.0001,2]
[353840270,1740088232132,-2454.00347354,0.0001,2]
[353840271,1740088232143,-276.0,0.0001,2]
[353840272,1740088232154,-1405.23133185,0.0001,2]
[353840273,1740088232165,-704.62045861,0.0001,2]
[353840274,1740088232176,-5429.36626318,0.0001,2]
[353840275,1740088232187,-2072.128,0.0001,2]
[353840276,1740088232199,-461.941993,0.0001,2]
[353840277,1740088232210,-265.790003,0.0001,2]
[353840278,1740088232221,-320.34913565,0.0001,2]
[353840279,1740088232232,-1569.56510515,0.0001,2]
[353840280,1740088232244,-412.40818989,0.0001,2]
[353840281,1740088232255,-3176.53130932,0.0001,2]
[353840282,1740088232267,-295.89475918,0.0001,2]
[353840283,1740088232278,-571.45685284,0.0001,2]
[353840803,1740088237732,-54100.64785902,0.0001,2]
[353840806,1740088237743,-37122.70821619,0.0001,2]
[353840808,1740088237754,-17776.968879,0.0001,2]
[353840812,1740088237785,-2281.87364935,0.0001,2]
[353840814,1740088237796,-1062.24430124,0.0001,2]
[353840821,1740088237851,-627.34078749,0.0001,2]
[353840828,1740088237914,-219863.01351366,0.0001,2]
[353840830,1740088237925,-118771.0781928,0.0001,2]
[353840832,1740088237936,-389.900012,0.0001,2]
[353840998,1740088239904,-3712.35395216,0.0001,2]
[353841004,1740088239953,-12598.499997,0.0001,2]
[353841036,1740088240237,-316.97090001,0.0001,2]
[353841038,1740088240248,-461.61326999,0.0001,2]
[353841253,1740088242876,-13435.3288526,0.0001,2]
[353841255,1740088242888,-12664.4999997,0.0001,2]
[353841557,1740088245681,-17536.78146953,0.0001,2]
[353841570,1740088245797,-1022.1,0.0001,2]
[353841579,1740088245868,-459.22788526,0.0001,2]
[353841581,1740088245880,-669.17499606,0.0001,2]
[353841584,1740088245891,-408.89828711,0.0001,2]
[353841589,1740088245929,-9050.47106516,0.0001,2]
[353841596,1740088245991,-42224.60325059,0.0001,2]
[353842286,1740088584831,632.8,8.219e-05,2]
[353842288,1740088878812,2000.0,9.144e-05,2]
[353842290,1740088986772,1000.0,9.133e-05,2]
[353842295,1740089146323,370.39,9.157e-05,2]
[353842296,1740089181153,898.1,9.162e-05,2]
[353842297,1740089205601,272.78,0.00013918,30]
[353842298,1740089220538,176.61,9.152e-05,2]
[353842299,1740089393107,711.42,9.162e-05,2]
[353842300,1740089393134,788.58,9.162e-05,2]
[353842301,1740089402476,383.6,9.17e-05,2]
[353842304,1740089410262,691.08,9.243e-05,2]
[353842309,1740089431908,-181.12,9.712e-05,2]
[353842310,1740089431917,-2103.168,9.8e-05,2]
[353842311,1740089431927,-173.551,9.8e-05,2]
[353842312,1740089431936,-168.63,9.825e-05,2]
[353842313,1740089431946,-200.0,9.831e-05,2]
[353842314,1740089431955,-384.73884186,9.907e-05,2]
[353842315,1740089431964,-2000.0,9.915e-05,2]
[353842316,1740089431974,-500.0,9.93e-05,2]
[353842317,1740089431983,-246.3,9.944e-05,2]
[353842318,1740089431993,-880.34,9.95e-05,2]
[353842319,1740089432003,-909.49,9.965e-05,2]
[353842320,1740089432012,-1449.65,9.965e-05,2]
[353842321,1740089432022,-150.0,9.965e-05,2]
[353842322,1740089432031,-3494.09,9.965e-05,2]
[353842323,1740089432041,-293.29,9.965e-05,2]
[353842324,1740089432053,-446.23,9.965e-05,2]
[353842325,1740089432062,-999.99,9.965e-05,2]
[353842326,1740089432071,-468.6,9.965e-05,2]
[353842327,1740089432080,-150.99,9.965e-05,2]
[353842328,1740089432090,-150.99,9.965e-05,2]
[353842329,1740089432099,-250.0,9.966e-05,2]
[353842330,1740089432108,-1116.44,9.966e-05,2]
[353842331,1740089432117,-15407.25,9.966e-05,2]
[353842332,1740089432127,-1208.31,9.966e-05,2]
[353842333,1740089432137,-393.11219075,9.999e-05,2]
[353842334,1740089432146,-500.0,0.0001,2]
[353842335,1740089432155,-9979.85076739,0.0001,2]
[353842336,1740089432168,-2643.39459498,0.0001,2]
[353842337,1740089432179,-568.17990878,0.0001,2]
[353842338,1740089432201,-1176.73559636,0.0001,2]
[353842891,1740089437833,-1025.15144011,0.0001,2]
[353842893,1740089437844,-1967.12107538,0.0001,2]
[353842899,1740089437890,-597.43237416,0.0001,2]
[353842902,1740089437901,-191005.53235337,0.0001,2]
[353842904,1740089437913,-1383.83798086,0.0001,2]
[353842908,1740089437949,-1171.38393184,0.0001,2]
[353842911,1740089437960,-172124.53650149,0.0001,2]
[353842913,1740089437971,-7737.36361139,0.0001,2]
[353842918,1740089438012,-1278.07552882,0.0001,2]
[353842921,1740089438023,-399.50233743,0.0001,2]
[353842926,1740089438071,-3000.000001,0.0001,2]
[353842928,1740089438082,-8489.9999986,0.0001,2]
[353842934,1740089438129,-106452.46362111,0.0001,2]
[353843124,1740089439994,-965.22083397,0.0001,2]
[353843126,1740089440006,-909.75368761,0.0001,2]
[353843132,1740089440059,-25420.84913431,0.0001,2]
[353843135,1740089440073,-16551.42595686,0.0001,2]
[353843137,1740089440086,-17176.1111592,0.0001,2]
[353843139,1740089440098,-572.91188503,0.0001,2]
[353843142,1740089440113,-12712.27219229,0.0001,2]
[353843144,1740089440124,-588.35851205,0.0001,2]
[353843146,1740089440136,-1636.74244001,0.0001,2]
[353843148,1740089440147,-1474.00107724,0.0001,2]
[353843151,1740089440158,-404.0,0.0001,2]
[353843164,1740089440280,-521.88034694,0.0001,2]
[353843167,1740089440292,-2143.3600349,0.0001,2]
[353843169,1740089440303,-3594.86716903,0.0001,2]
[353843180,1740089440397,-288.07999384,0.0001,2]
[353843182,1740089440408,-20704.00298066,0.0001,2]
[353843440,1740089442929,-5503.12715141,0.0001,2]
[353843450,1740089442987,-292.35005528,0.0001,2]
[353843452,1740089442999,-371.45349006,0.0001,2]
[353843458,1740089443046,-45257.73761913,0.0001,2]
[353843464,1740089443106,-1213.76444634,0.0001,2]
[353843471,1740089443164,-1911.39227438,0.0001,2]
[353843474,1740089443176,-1967.92,0.0001,2]
[353843480,1740089443224,-505.89,0.0001,2]
[353843769,1740089446074,-503.7317423,0.0001,2]
[353843770,1740089446133,-43585.4475757,0.0001,2]
[353843771,1740089446148,-269.24704914,0.0001,2]
[353844733,1740089717368,351.7,8.767e-05,2]
[353844734,1740089854370,601.16,8.292e-05,2]
[353844736,1740090246640,259.14,0.00013918,30]
[353844740,1740090469866,150.0,9.462e-05,2]
[353845577,1740090640586,-150.0,9.827e-05,2]
[353845579,1740090640596,-260.05499999,9.999e-05,2]
[353845581,1740090640607,-39.94500001,9.999e-05,2]
[353845583,1740090640616,-175.9085502,9.999e-05,2]
[353845586,1740090640626,-480.67424979,0.0001,2]
[353845801,1740090643362,-207432.24369029,0.0001,2]
[353845803,1740090643371,-57773.42866373,0.0001,2]
[353845805,1740090643382,-550.0,0.0001,2]
[353845807,1740090643392,-867.54765067,0.0001,2]
[353845809,1740090643401,-1134729.48121047,0.0001,2]
[353845811,1740090643410,-203.94823009,0.0001,2]
[353845813,1740090643420,-6983.69054541,0.0001,2]
[353845815,1740090643430,-441.96209879,0.0001,2]
[353845817,1740090643439,-329.7761502,0.0001,2]
[353845819,1740090643450,-508.96614061,0.0001,2]
[353845821,1740090643462,-2275.44594,0.0001,2]
[353845823,1740090643471,-323.20347792,0.0001,2]
[353845825,1740090643481,-733.39,0.00010011,2]
[353845827,1740090643490,-500.0,0.00010043,2]
[353845829,1740090643499,-500.0,0.0001011,2]
[353845831,1740090643508,-500.0,0.0001011,2]
[353845833,1740090643518,-704.82,0.00010135,2]
[353845835,1740090643529,-704.82,0.00010151,2]
[353845837,1740090643538,-704.82,0.00010167,2]
[353845839,1740090643548,-150.99,0.00010167,2]
[353845841,1740090643557,-500.0,0.00010174,2]
[353845843,1740090643567,-500.0,0.00010174,2]
[353845845,1740090643576,-500.0,0.00010174,2]
[353845847,1740090643585,-704.82,0.00010183,2]
[353845849,1740090643595,-250.0,0.00010185,2]
[353845851,1740090643604,-500.0,0.00010195,2]
[353845853,1740090643613,-704.82,0.00010199,2]
[353845855,1740090643622,-150.99,0.00010199,2]
[353845857,1740090643631,-738.79,0.00010204,2]
[353845859,1740090643641,-704.82,0.00010215,2]
[353845861,1740090643651,-1946.19,0.00010219,14]
[353845863,1740090643660,-165.14,0.0001022,2]
[353845865,1740090643669,-1000.0,0.00010224,2]
[353845867,1740090643679,-704.82,0.00010231,2]
[353845869,1740090643688,-1970.92,0.00010234,2]
[353845871,1740090643698,-2000.0,0.00010235,2]
[353845873,1740090643707,-704.82,0.00010247,2]
[353845875,1740090643716,-200.0,0.0001026,2]
[353845877,1740090643725,-704.82,0.00010263,2]
[353845879,1740090643734,-704.82,0.00010279,2]
[353845881,1740090643743,-704.82,0.00010295,2]
[353845883,1740090643753,-704.82,0.00010311,2]
[353845885,1740090643762,-383.6,0.00010316,2]
[353845887,1740090643772,-704.82,0.00010327,2]
[353845889,1740090643781,-704.82,0.00010343,2]
[353845891,1740090643790,-704.82,0.00010359,2]
[353845893,1740090643799,-704.82,0.00010375,2]
[353845895,1740090643809,-704.82,0.00010391,2]
[353845897,1740090643818,-309.16,0.000104,2]
[353845899,1740090643828,-300.0,0.000104,2]
[353845901,1740090643837,-877.94,0.000104,2]
[353845903,1740090643846,-150.0,0.000104,2]
[353845905,1740090643856,-878.94,0.000104,2]
[353845907,1740090643865,-1973.68,0.000104,2]
[353845909,1740090643874,-302.46,0.000104,2]
[353845911,1740090643884,-704.82,0.00010407,2]
[353845913,1740090643894,-704.82,0.00010423,2]
[353845915,1740090643903,-954.92233312,0.00010439,2]
[353845917,1740090643912,-704.82,0.00010439,2]
[353845919,1740090643921,-601.16,0.00010556,2]